bitfinex/quotes_ETHUSD_20251118
["timestamp","ask_amount","ask_price","bid_price","bid_amount"]
[1763455101343,1.19899264,3073.4,3072.5,0.09999999]
[1763455101511,0.4826,3074.0,3073.2,0.09999999]
[1763455101710,7.94433253,3073.7,3072.6,0.09999999]
[1763455101913,0.405504,3072.8,3072.1,0.09999999]
[1763455102111,0.90699264,3073.4,3072.1,0.09999999]
[1763455102443,0.90699264,3073.9,3073.0,0.09999999]
[1763455102642,0.293,3073.8,3073.2,0.09999999]
[1763455102842,7.94433253,3073.5,3072.3,0.4892]
[1763455103143,1.19899264,3073.4,3072.2,0.1885]
[1763455103342,0.293,3073.3,3073.1,0.09999999]
[1763455103563,0.90699264,3073.9,3073.1,0.09999999]
[1763455103564,0.293,3073.2,3073.1,0.09999999]
[1763455103714,0.698504,3073.2,3073.1,0.09999999]
[1763455104048,0.405504,3073.1,3072.5,0.09999999]
[1763455104210,0.293,3073.0,3072.9,0.09999999]
[1763455104411,0.293,3073.0,3072.8,0.09999999]
[1763455104647,0.405504,3073.2,3072.5,0.09999999]
[1763455104844,0.405504,3073.2,3072.3,0.4892]
[1763455104845,0.293,3073.1,3073.0,0.09999999]
[1763455105228,0.90699264,3073.6,3073.0,0.09999999]
[1763455105427,2.2874126,3077.4,3072.2,0.1885]
[1763455105428,0.292,3073.5,3073.4,0.09999999]
[1763455105635,0.293,3073.5,3073.4,0.09999999]
[1763455105826,0.292,3073.5,3072.9,0.09999999]
[1763455106022,0.292,3073.5,3073.4,0.09999999]
[1763455106425,8.42693253,3074.1,3073.4,0.09999999]
[1763455107538,8.42693253,3074.1,3072.2,0.1885]
[1763455107539,7.94433253,3074.8,3073.6,0.09999999]
[1763455107850,0.292,3074.7,3074.0,0.09999999]
[1763455108822,0.405504,3074.6,3074.0,0.09999999]
[1763455109239,0.90699264,3074.5,3074.0,0.09999999]
[1763455109544,2.642,3074.4,3074.0,0.09999999]
[1763455109723,0.405504,3074.3,3074.0,0.09999999]
[1763455109924,0.292,3074.2,3074.0,0.09999999]
[1763455110129,1.19899264,3074.2,3073.3,0.1885]
[1763455110340,1.19899264,3074.2,3072.9,0.4892]
[1763455110341,0.888104,3074.1,3073.6,0.09999999]
[1763455110524,0.888104,3074.1,3073.2,0.09999999]
[1763455110525,7.94433253,3073.8,3073.2,0.09999999]
[1763455110729,1.19899264,3073.7,3073.2,0.09999999]
[1763455110925,0.292,3073.6,3073.4,0.09999999]
[1763455111125,0.292,3073.6,3073.1,0.09999999]
[1763455111350,0.90699264,3073.8,3073.4,0.09999999]
[1763455111861,0.292,3073.7,3073.4,0.09999999]
[1763455112169,0.90699264,3073.8,3073.4,0.09999999]
[1763455112317,0.292,3073.7,3073.4,0.09999999]
[1763455112526,0.405504,3073.6,3073.1,0.09999999]
[1763455112865,0.405504,3073.6,3072.4,0.4902]
[1763455112866,1.31249664,3073.3,3072.9,0.09999999]
[1763455113168,1.68686507,3073.9,3072.6,0.09999999]
[1763455113370,0.90699264,3073.4,3072.9,0.09999999]
[1763455113571,0.90699264,3073.4,3072.4,0.001]
[1763455113572,0.292,3073.3,3072.4,0.001]
[1763455113870,0.292,3073.3,3073.2,0.09999999]
[1763455114036,0.697504,3073.3,3072.7,0.09999999]
[1763455114224,0.697504,3073.3,3072.4,0.001]
[1763455114421,0.405504,3073.2,3072.4,0.001]
[1763455114625,1.31249664,3072.9,3072.4,0.001]
[1763455114842,0.405504,3072.7,3072.4,0.001]
[1763455115064,0.90699264,3072.9,3072.8,0.09999999]
[1763455115349,0.292,3072.9,3072.8,0.09999999]
[1763455116182,0.292,3072.9,3072.4,0.1895]
[1763455116183,0.3066,3073.6,3073.3,0.09999999]
[1763455116383,0.405504,3073.7,3073.3,0.09999999]
[1763455116584,0.3066,3073.6,3073.3,0.09999999]
[1763455116754,0.405504,3073.5,3073.3,0.09999999]
[1763455117302,0.405504,3073.3,3072.4,0.001]
[1763455117446,0.405504,3073.1,3072.4,0.001]
[1763455117640,1.31249664,3072.7,3072.4,0.001]
[1763455118288,1.69796653,3073.2,3072.4,0.001]
[1763455118289,2.37824756,3075.7,3074.6,0.09999999]
[1763455118625,2.37824756,3075.7,3072.5,0.6884]
[1763455118626,0.293,3075.6,3074.7,0.40067282]
[1763455118751,0.293,3075.6,3074.4,0.08281975]
[1763455119078,0.90699264,3075.2,3074.1,0.1979]
[1763455119280,0.294,3075.1,3074.1,0.1979]
[1763455119977,8.03516749,3075.7,3074.1,0.1979]
[1763455120153,0.294,3075.6,3074.1,0.1979]
[1763455120348,0.294,3075.5,3074.1,0.1979]
[1763455120661,0.294,3075.5,3074.2,0.4905]
[1763455121784,0.90699264,3075.1,3073.3,1.35069409]
[1763455121941,1.31249664,3074.6,3073.3,0.4905]
[1763455122139,1.31249664,3074.6,3073.0,0.1979]
[1763455122140,0.405504,3074.4,3073.0,0.1979]
[1763455122442,0.405504,3074.4,3072.5,0.1979]
[1763455122443,1.31249664,3074.1,3072.5,0.1979]
[1763455122640,0.405504,3073.6,3072.5,0.1979]
[1763455122947,0.405504,3073.4,3072.4,0.001]
[1763455123156,1.31249664,3073.1,3072.4,0.001]
[1763455123340,0.405504,3072.9,3072.4,0.001]
[1763455124046,0.293,3072.8,3072.4,0.001]
[1763455124252,0.293,3072.8,3072.4,0.4915]
[1763455124585,0.293,3072.7,3072.4,0.001]
[1763455124785,0.293,3072.6,3072.4,0.001]
[1763455125071,0.34,3074.2,3072.5,0.4905]
[1763455125247,0.293,3074.1,3072.5,0.4905]
[1763455125447,0.1848,3074.7,3072.5,0.4905]
[1763455125671,0.34,3075.6,3072.9,7.94433253]
[1763455125869,0.293,3075.5,3073.0,1.20563733]
[1763455126071,0.293,3075.5,3073.1,1.17309584]
[1763455126285,0.293,3075.5,3073.2,0.68259584]
[1763455126286,0.633,3075.5,3073.2,0.68259584]
[1763455126491,0.633,3075.5,3073.2,0.4905]
[1763455126787,0.293,3075.4,3074.0,10.34565673]
[1763455127085,1.19999264,3075.4,3073.0,0.86019409]
[1763455127252,0.405504,3074.7,3073.0,0.4905]
[1763455127457,0.405504,3074.5,3073.0,0.4905]
[1763455127855,0.405504,3074.5,3072.0,0.1989]
[1763455127856,0.405504,3074.3,3072.0,1.05909409]
[1763455128153,0.405504,3074.3,3072.5,0.4905]
[1763455128350,0.34,3074.3,3072.5,0.4905]
[1763455129192,2.35,3074.2,3072.5,0.4905]
[1763455129394,0.90699264,3074.1,3072.6,0.68378358]
[1763455129598,0.90699264,3074.1,3072.5,0.4905]
[1763455129803,1.468,3074.2,3072.6,0.68384362]
[1763455130017,0.405504,3074.1,3072.5,0.4905]
[1763455130605,3.32330706,3074.1,3072.4,0.001]
[1763455130899,0.405504,3073.5,3072.4,0.001]
[1763455131192,1.65411531,3073.8,3072.4,0.001]
[1763455131193,0.405504,3073.3,3072.4,0.001]
[1763455132290,0.745504,3073.3,3072.4,0.001]
[1763455132789,0.293,3073.2,3072.4,0.001]
[1763455133088,0.405504,3073.1,3072.4,0.001]
[1763455133466,0.293,3073.0,3072.4,0.4915]
[1763455133674,0.293,3072.9,3072.4,0.4915]
[1763455134498,0.293,3072.9,3072.4,0.001]
[1763455135401,0.1805,3073.1,3072.4,0.001]
[1763455135575,0.405504,3073.0,3072.4,0.001]
[1763455135777,0.293,3072.9,3072.4,0.001]
[1763455136085,0.405504,3073.3,3072.4,0.001]
[1763455136296,0.293,3073.2,3072.4,0.001]
[1763455136689,2.2874126,3074.8,3072.4,0.001]
[1763455136871,0.293,3074.7,3073.4,0.1979]
[1763455137189,0.34,3074.6,3072.9,0.4905]
[1763455137372,0.293,3074.5,3072.9,0.4905]
[1763455137573,0.293,3074.4,3072.9,0.4905]
[1763455137768,0.293,3074.3,3072.9,0.4905]
[1763455137968,0.293,3074.2,3072.9,0.4905]
[1763455138178,0.293,3074.2,3072.5,0.4905]
[1763455138383,0.405504,3074.0,3072.5,0.4905]
[1763455138568,0.293,3073.9,3072.5,0.4905]
[1763455138970,0.698504,3073.8,3072.5,0.4905]
[1763455139171,1.31249664,3073.6,3072.5,0.4905]
[1763455139472,0.405504,3073.6,3072.4,0.001]
[1763455139685,0.405504,3073.4,3072.4,0.001]
[1763455140202,0.405504,3073.2,3072.4,0.001]
[1763455140404,0.405504,3073.0,3072.4,0.001]
[1763455140605,0.90699264,3072.9,3072.4,0.001]
[1763455140773,0.405504,3072.8,3072.4,0.001]
[1763455141216,0.405504,3072.6,3072.4,0.001]
[1763455141374,0.34,3072.6,3072.4,0.001]
[1763455141703,0.405504,3072.8,3072.4,0.6894]
[1763455141910,0.293,3072.7,3072.4,0.1989]
[1763455142411,0.293,3072.7,3072.4,0.001]
[1763455142910,1.75293482,3073.5,3072.4,0.001]
[1763455143202,0.293,3073.4,3072.5,0.4905]
[1763455143806,1.75293482,3073.9,3072.5,0.4905]
[1763455144011,1.75293482,3074.0,3072.5,0.4905]
[1763455144169,0.1806,3074.3,3072.5,0.4905]
[1763455144506,1.75293482,3074.7,3072.6,0.03254572]
[1763455144682,0.293,3074.2,3072.5,0.4905]
[1763455144869,0.293,3074.2,3072.6,0.03254572]
[1763455145074,0.293,3074.1,3072.5,0.4905]
[1763455145701,0.293,3074.0,3072.5,0.52304678]
[1763455146806,0.293,3074.0,3072.5,0.4905]
[1763455147311,0.745504,3073.9,3072.5,0.4905]
[1763455147476,0.405504,3073.4,3072.4,0.001]
[1763455147786,0.293,3073.3,3072.4,0.001]
[1763455148181,0.4694,3073.2,3072.4,0.001]
[1763455148408,0.1764,3073.2,3072.4,0.001]
[1763455148577,0.698504,3073.1,3072.4,0.001]
[1763455149018,0.293,3073.0,3072.4,0.001]
[1763455149220,1.175,3072.9,3072.4,0.001]
[1763455149399,2.08199264,3072.9,3072.4,0.001]
[1763455150540,1.75293482,3073.4,3072.4,0.001]
[1763455150541,0.293,3072.8,3072.5,0.4962]
[1763455150699,2.65992746,3073.5,3072.5,0.4962]
[1763455150700,1.75293482,3073.5,3072.5,0.4962]
[1763455150900,0.292,3073.4,3072.5,0.4962]
[1763455151702,0.292,3073.4,3072.4,0.001]
[1763455151902,1.75293482,3073.7,3072.5,0.4962]
[1763455152124,1.75293482,3073.9,3072.5,0.4962]
[1763455152333,0.292,3073.8,3072.6,0.03254572]
[1763455152533,0.0374,3074.4,3072.6,0.03254572]
[1763455152534,1.75293482,3074.4,3072.6,0.03254572]
[1763455152738,0.002,3074.7,3073.7,0.196]
[1763455152739,1.75493482,3074.7,3073.7,0.196]
[1763455153033,0.292,3074.3,3073.7,0.196]
[1763455153553,1.75293482,3074.6,3073.7,0.4962]
[1763455153760,0.292,3074.5,3073.7,0.4962]
[1763455154109,0.292,3074.4,3073.7,0.4962]
[1763455154722,0.002,3074.7,3073.7,0.4962]
[1763455154963,0.292,3074.3,3073.7,0.4962]
[1763455155439,0.292,3074.2,3073.7,0.4962]
[1763455155639,0.292,3074.1,3073.7,0.4962]
[1763455155941,0.292,3074.0,3073.7,0.4962]
[1763455156141,0.002,3074.7,3073.7,0.4962]
[1763455156365,0.002,3074.7,3074.6,0.196]
[1763455156535,0.002,3074.7,3074.6,0.6922]
[1763455156731,0.294,3074.7,3074.6,0.6922]
[1763455156946,0.294,3074.7,3074.6,0.196]
[1763455157144,0.294,3074.7,3074.2,0.4962]
[1763455158168,0.002,3074.7,3074.2,0.52872878]
[1763455158339,0.292,3074.6,3074.2,0.4962]
[1763455159168,2.642,3074.5,3074.2,0.4962]
[1763455159327,0.292,3074.5,3074.2,0.4962]
[1763455159527,0.002,3074.7,3074.2,0.52872878]
[1763455159836,0.292,3074.6,3074.2,0.52872878]
[1763455160037,0.292,3074.6,3074.2,0.4962]
[1763455160430,0.002,3074.7,3074.2,0.4962]
[1763455160630,0.292,3074.6,3074.2,0.4962]
[1763455160836,0.09083496,3075.7,3074.3,0.03252772]
[1763455161150,0.292,3075.6,3074.4,0.4616]
[1763455161351,0.292,3075.6,3074.5,0.03252561]
[1763455161728,0.292,3075.6,3074.6,0.4616]
[1763455161932,0.292,3075.6,3074.7,0.03252349]
[1763455162129,0.09083496,3075.7,3074.7,0.03252349]
[1763455162360,0.292,3075.6,3074.7,0.4616]
[1763455163748,0.292,3075.5,3074.7,0.4616]
[1763455163949,0.09083496,3075.7,3074.8,0.03252244]
[1763455164140,0.292,3075.4,3074.9,0.4616]
[1763455164345,0.292,3075.4,3074.2,0.4616]
[1763455166863,0.292,3075.3,3074.2,0.4616]
[1763455167400,1.77009664,3075.2,3073.6,0.4616]
[1763455167546,1.77009664,3075.2,3073.3,0.6576]
[1763455167743,0.405504,3075.0,3073.3,0.6576]
[1763455167948,0.405504,3075.0,3073.4,0.4616]
[1763455168185,0.4576,3074.9,3073.4,0.4616]
[1763455168678,0.291,3074.8,3073.4,0.4616]
[1763455169047,1.175,3074.7,3073.4,0.4616]
[1763455169246,0.7486,3074.8,3073.4,0.4616]
[1763455169247,0.4576,3074.8,3073.4,0.4616]
[1763455169477,1.19799264,3074.6,3073.4,0.4616]
[1763455169779,9.48546264,3075.3,3073.4,0.4616]
[1763455169780,0.4576,3075.3,3073.4,0.4616]
[1763455169955,0.7486,3075.2,3073.4,0.4616]
[1763455170281,1.75293482,3075.6,3073.5,0.03253619]
[1763455170282,0.291,3075.1,3073.5,0.03253619]
[1763455170468,0.4576,3075.6,3073.5,0.03253619]
[1763455170668,0.291,3075.5,3073.6,0.4616]
[1763455171760,1.03549264,3075.9,3075.0,3.0]
[1763455171978,0.291,3075.6,3075.0,3.0]
[1763455173584,0.4576,3075.8,3075.0,3.0]
[1763455173878,0.291,3075.6,3075.0,3.0]
[1763455174680,0.1285,3075.9,3075.0,3.0]
[1763455174681,0.291,3075.5,3075.0,3.0]
[1763455175103,0.7486,3075.5,3075.0,3.0]
[1763455175279,0.1285,3075.9,3075.0,3.0]
[1763455175468,0.405504,3075.6,3075.0,3.0]
[1763455175670,0.291,3075.5,3075.0,3.0]
[1763455175867,0.7486,3075.5,3075.0,3.0]
[1763455176103,0.90699264,3075.3,3075.0,3.0]
[1763455176323,0.405504,3075.2,3075.0,3.0]
[1763455176472,0.899804,3075.2,3075.0,3.0]
[1763455176984,0.405504,3075.0,3073.1,0.1999]
[1763455177306,2.65273882,3075.1,3073.3,0.4707]
[1763455177307,0.90699264,3074.7,3073.3,0.4707]
[1763455177473,0.7853,3074.9,3073.3,0.4707]
[1763455177474,0.291,3074.6,3073.3,0.4707]
[1763455177808,0.291,3074.5,3073.3,0.4707]
[1763455178373,0.291,3074.4,3073.3,0.4707]
[1763455178774,0.291,3074.3,3073.3,0.4707]
[1763455178977,2.24723482,3075.3,3073.4,0.03253725]
[1763455179177,3.1353,3075.2,3073.3,0.4707]
[1763455179602,0.4943,3075.1,3073.3,0.4707]
[1763455179808,0.4943,3075.1,3073.4,0.03253725]
[1763455180319,0.4943,3075.1,3073.5,0.4707]
[1763455180502,0.29,3075.0,3073.5,0.4707]
[1763455180886,0.4943,3074.9,3073.5,0.4707]
[1763455181419,0.405504,3074.8,3073.1,0.1999]
[1763455181714,0.405504,3074.6,3073.3,0.4707]
[1763455181913,0.405504,3074.6,3073.1,0.1999]
[1763455181914,2.15843882,3074.6,3073.1,0.1999]
[1763455182115,0.405504,3074.4,3073.1,0.1999]
[1763455182315,0.29,3074.3,3073.1,0.6706]
[1763455182824,0.29,3074.3,3073.2,0.4707]
[1763455183394,0.29,3074.2,3073.2,0.4707]
[1763455184396,0.90699264,3074.7,3073.2,0.4707]
[1763455184618,0.29,3074.6,3073.2,0.4707]
[1763455184787,0.29,3074.5,3073.2,0.4707]
[1763455185114,1.40129264,3074.7,3073.2,0.4707]
[1763455185323,0.29,3074.4,3073.2,0.4707]
[1763455187327,0.4943,3074.5,3073.2,0.4707]
[1763455187328,0.42965379,3074.5,3073.2,0.4707]
[1763455188538,0.29,3074.4,3073.2,0.4707]
[1763455188837,0.29,3074.4,3073.2,0.1707]
[1763455189011,0.7843,3074.4,3073.2,0.1707]
[1763455189211,3.25699264,3074.3,3073.2,0.1707]
[1763455189412,3.54699264,3074.2,3073.2,0.1707]
[1763455189620,0.29,3074.1,3073.2,0.1707]
[1763455190028,0.29,3074.1,3072.5,0.001]
[1763455190029,0.90699264,3073.9,3072.5,0.001]
[1763455190435,0.29,3073.8,3072.5,0.001]
[1763455190931,0.29,3073.8,3072.6,0.4707]
[1763455191310,0.289,3073.7,3072.7,0.03254466]
[1763455191515,0.289,3073.6,3072.7,0.03254466]
[1763455191722,0.289,3073.5,3072.8,0.4707]
[1763455191932,0.289,3073.4,3072.8,0.4707]
[1763455192438,0.4943,3074.2,3073.3,0.1999]
[1763455192735,1.09199264,3074.3,3073.3,0.6614]
[1763455192736,0.289,3074.1,3073.3,0.6614]
[1763455193141,0.289,3074.0,3073.3,0.6614]
[1763455193305,0.289,3074.0,3072.8,0.4707]
[1763455193507,0.90699264,3073.9,3072.8,0.4707]
[1763455194136,1.09199264,3074.3,3072.8,0.4707]
[1763455194437,0.289,3073.8,3072.8,0.4707]
[1763455195911,0.289,3073.8,3072.5,0.001]
[1763455195912,0.7833,3073.8,3072.5,0.4717]
[1763455196213,0.90699264,3073.6,3072.5,0.001]
[1763455196419,0.90699264,3073.2,3072.5,0.001]
[1763455196614,0.289,3073.1,3072.5,0.001]
[1763455196940,8.20973835,3073.3,3072.5,0.001]
[1763455196941,0.4943,3073.3,3072.5,0.001]
[1763455197143,0.289,3073.2,3072.5,0.001]
[1763455197940,0.4943,3073.3,3072.5,0.001]
[1763455198535,0.289,3073.2,3072.5,0.001]
[1763455198908,0.4943,3073.3,3072.5,0.001]
[1763455199240,2.639,3073.2,3072.5,0.001]
[1763455199616,0.90699264,3073.0,3072.5,0.001]
[1763455199943,0.289,3072.9,3072.5,0.4717]
[1763455200139,0.90899264,3073.9,3073.0,0.4615]
[1763455200340,0.002,3073.9,3073.0,0.4615]
[1763455200643,0.7833,3073.8,3073.0,0.4615]
[1763455201010,0.4943,3073.7,3072.6,0.4707]
[1763455201214,0.90899264,3073.9,3072.6,0.4707]
[1763455201215,0.002,3073.9,3073.7,0.4615]
[1763455201430,0.289,3073.8,3073.7,0.4615]
[1763455201742,0.289,3073.8,3073.2,0.4707]
[1763455201946,0.002,3073.9,3073.2,0.4707]
[1763455202114,0.002,3073.9,3073.8,0.4615]
[1763455202447,0.291,3073.9,3073.8,0.9322]
[1763455202646,8.20973835,3075.5,3073.8,0.9322]
[1763455202821,0.289,3075.4,3073.9,0.4707]
[1763455203021,0.09083496,3075.7,3073.9,0.4707]
[1763455203237,0.289,3075.6,3073.9,0.4707]
[1763455203417,0.7833,3075.6,3073.9,0.4707]
[1763455203919,0.289,3075.5,3073.9,0.4707]
[1763455205047,0.288,3075.4,3073.9,0.4707]
[1763455205479,0.4943,3075.6,3073.9,0.4707]
[1763455205679,0.288,3075.3,3073.9,0.4707]
[1763455206278,0.288,3075.2,3073.9,0.4707]
[1763455206481,0.288,3075.2,3074.0,0.0325309]
[1763455206977,0.288,3075.2,3074.1,0.6435]
[1763455207477,0.288,3075.2,3074.2,0.1521]
[1763455207681,0.9978276,3075.7,3074.2,0.1521]
[1763455207880,0.288,3075.6,3074.2,0.1521]
[1763455208246,0.09083496,3075.7,3075.5,0.4963]
[1763455208446,0.09083496,3075.7,3074.3,0.03252772]
[1763455208677,0.09083496,3075.7,3074.1,0.22392984]
[1763455208872,0.09083496,3075.7,3075.6,0.4963]
[1763455209063,1.55383496,3075.7,3075.6,0.4963]
[1763455209258,2.72883496,3075.7,3075.6,0.4963]
[1763455209459,2.72883496,3075.7,3075.6,0.9484]
[1763455209660,2.72883496,3075.7,3075.6,0.4963]
[1763455209860,0.37883496,3075.7,3075.2,0.4521]
[1763455210189,0.37883496,3075.7,3074.9,0.4521]
[1763455210394,0.288,3075.6,3075.3,0.4521]
[1763455210691,0.288,3075.6,3074.9,0.4521]
[1763455210982,0.288,3075.5,3074.9,0.4521]
[1763455211180,0.09083496,3075.7,3074.9,0.4521]
[1763455211690,0.288,3075.6,3074.9,0.4521]
[1763455212187,0.09083496,3075.7,3074.9,0.4521]
[1763455212346,0.288,3075.5,3074.9,0.4521]
[1763455212948,0.09083496,3075.7,3075.4,0.4963]
[1763455213184,0.288,3075.6,3075.4,0.4963]
[1763455213589,0.09083496,3075.7,3075.6,0.4963]
[1763455213753,0.37883496,3075.7,3075.6,0.4963]
[1763455214091,0.37883496,3075.7,3074.7,0.4521]
[1763455214290,0.09083496,3075.7,3075.6,0.4963]
[1763455214451,0.37883496,3075.7,3075.6,0.9484]
[1763455214984,0.09083496,3075.7,3075.6,0.4963]
[1763455215196,0.37883496,3075.7,3075.6,0.4963]
[1763455215377,1.04353496,3075.7,3074.2,0.4521]
[1763455215696,0.002,3075.5,3074.3,0.48462772]
[1763455215881,0.90699264,3076.1,3074.3,0.48462772]
[1763455216198,0.288,3076.0,3075.2,8.20973835]
[1763455216383,0.288,3075.9,3075.3,0.85349099]
[1763455216696,0.288,3075.9,3074.5,0.48462561]
[1763455216876,0.003,3076.9,3074.5,0.48462561]
[1763455216877,0.1892,3075.8,3074.5,0.4521]
[1763455217077,0.4968,3076.1,3074.5,0.4521]
[1763455217278,0.4968,3076.1,3073.9,0.001]
[1763455217279,8.20973835,3074.8,3073.9,0.001]
[1763455217579,0.90699264,3074.2,3073.9,0.001]
[1763455217779,1.66451469,3074.1,3073.9,0.001]
[1763455218090,0.405504,3073.9,3073.5,0.001]
[1763455218253,0.405504,3073.5,3072.5,0.001]
[1763455218454,0.4968,3073.4,3072.5,0.001]
[1763455218669,0.90699264,3072.9,3072.5,0.001]
[1763455218883,0.288,3072.8,3072.5,0.001]
[1763455219069,1.174,3072.7,3072.5,0.001]
[1763455219261,0.1947,3073.9,3072.6,0.4782]
[1763455219469,0.1947,3073.9,3072.7,0.03254466]
[1763455219674,8.40443835,3073.9,3072.7,0.4782]
[1763455219871,0.1892,3074.6,3072.7,0.4782]
[1763455219872,8.20973835,3074.4,3072.7,0.4782]
[1763455220097,0.4648,3075.1,3072.8,0.0325436]
[1763455220299,0.4648,3075.1,3072.9,0.4782]
[1763455220613,0.4648,3075.1,3073.0,0.03254149]
[1763455220614,0.289,3074.9,3073.0,0.03254149]
[1763455221065,0.4648,3075.1,3073.1,0.6603]
[1763455221265,0.289,3074.8,3073.1,0.69284043]
[1763455221495,0.289,3074.8,3073.2,0.4782]
[1763455221813,0.288,3074.7,3073.2,0.4782]
[1763455221977,0.288,3074.7,3073.3,0.03253831]
[1763455222302,0.1892,3075.0,3073.4,0.03253725]
[1763455222510,0.288,3074.9,3073.5,0.4782]
[1763455222937,0.1947,3074.8,3073.5,0.4782]
[1763455223725,0.1947,3074.8,3073.6,0.03253513]
[1763455224084,0.288,3074.7,3073.7,0.4782]
[1763455224393,0.288,3074.7,3073.2,0.4782]
[1763455224394,0.7528,3074.7,3073.2,0.4782]
[1763455224569,0.90699264,3074.6,3073.2,0.4782]
[1763455224910,0.90699264,3074.2,3073.1,0.1821]
[1763455225120,8.20973835,3073.9,3072.8,0.1821]
[1763455225394,0.7528,3074.1,3072.8,0.1821]
[1763455225595,0.1947,3073.8,3072.8,0.1821]
[1763455225896,0.1947,3072.9,3072.5,0.001]
[1763455226097,8.20973835,3073.5,3072.5,0.001]
[1763455226282,0.90699264,3073.4,3072.5,0.001]
[1763455226485,1.19499264,3073.4,3072.5,0.001]
[1763455226701,0.90699264,3073.4,3072.5,0.001]
[1763455226998,0.1947,3073.8,3072.5,0.4792]
[1763455227190,0.288,3073.3,3072.5,0.4792]
[1763455228168,0.7528,3073.3,3072.5,0.001]
[1763455228479,1.65979264,3073.2,3072.5,0.001]
[1763455229068,2.35,3073.1,3072.5,0.001]
[1763455229678,1.65979264,3073.2,3072.2,0.001]
[1763455229679,9.11673099,3072.6,3072.2,0.001]
[1763455230020,1.65979264,3072.5,3072.2,0.001]
[1763455230218,0.405504,3072.4,3072.2,0.001]
[1763455230404,0.870304,3072.3,3072.2,0.001]
[1763455230581,0.870304,3072.3,3072.0,0.001]
[1763455230779,1.19499264,3072.5,3069.6,0.93872036]
[1763455230780,1.31249664,3072.0,3069.6,0.93872036]
[1763455231028,8.20973835,3069.8,3069.6,0.93872036]
[1763455231209,0.4648,3070.8,3069.6,0.93872036]
[1763455231415,0.288,3070.7,3069.7,0.51077647]
[1763455231712,8.20973835,3070.3,3069.6,0.93872036]
[1763455232013,0.90699264,3070.2,3069.6,0.93872036]
[1763455232215,0.1947,3069.7,3069.6,0.93872036]
[1763455232606,0.600204,3069.7,3069.6,0.93872036]
[1763455232782,9.15823835,3069.7,3069.6,0.93872036]
[1763455233114,10.47073499,3069.7,3069.3,0.93872036]
[1763455233318,1.77729664,3069.6,3067.6,0.4782]
[1763455233482,1.77729664,3069.6,3066.0,0.1821]
[1763455233483,0.90699264,3068.6,3067.5,0.4782]
[1763455233689,0.289,3068.5,3067.5,0.4782]
[1763455233912,0.4648,3069.4,3067.8,0.03259664]
[1763455234088,1.37179264,3069.4,3067.8,0.03259664]
[1763455234284,0.90699264,3069.0,3067.7,0.1821]
[1763455234714,0.1947,3068.9,3067.7,0.1821]
[1763455234921,0.90699264,3068.6,3067.7,0.1821]
[1763455235136,0.6595,3068.9,3067.7,0.1821]
[1763455235285,0.29,3068.5,3067.7,0.1821]
[1763455235484,0.29,3068.5,3067.3,0.001]
[1763455235685,0.29,3068.5,3067.3,0.4792]
[1763455236821,0.7436,3068.5,3067.3,0.4792]
[1763455237126,0.29,3068.4,3067.4,0.4927]
[1763455237597,0.1844,3068.6,3067.4,0.4927]
[1763455237934,0.29,3068.5,3067.4,0.4927]
[1763455238446,0.29,3068.5,3067.5,0.03259983]
[1763455238591,0.638,3068.9,3067.5,0.03259983]
[1763455238910,0.638,3068.9,3067.6,0.4927]
[1763455238911,0.29,3068.8,3067.6,0.4927]
[1763455239243,0.6483,3069.7,3067.6,0.4927]
[1763455239420,1.176,3068.7,3067.6,0.4927]
[1763455239737,0.90699264,3069.5,3067.6,0.4927]
[1763455239738,2.642,3068.6,3067.6,0.4927]
[1763455239886,2.642,3068.6,3067.7,0.1839]
[1763455240094,2.642,3068.6,3068.5,0.1839]
[1763455240436,2.642,3068.6,3068.5,0.6766]
[1763455240639,1.466,3068.6,3068.5,0.1839]
[1763455240842,0.29,3068.6,3068.5,0.1839]
[1763455241792,0.638,3070.2,3068.5,0.6766]
[1763455242041,0.29,3070.1,3068.5,0.6766]
[1763455242253,0.7436,3070.1,3068.5,0.6766]
[1763455242544,0.405504,3070.0,3068.5,0.6766]
[1763455242749,0.4536,3070.0,3068.5,0.6766]
[1763455242952,0.1844,3069.9,3068.5,0.6766]
[1763455243154,0.90699264,3069.8,3068.5,0.6766]
[1763455243354,1.36059264,3069.8,3068.1,0.6766]
[1763455243543,8.20973835,3069.5,3068.1,0.1839]
[1763455243741,0.29,3069.4,3068.2,0.52529239]
[1763455244320,0.4536,3069.7,3068.2,0.52529239]
[1763455244560,0.29,3069.3,3068.2,0.52529239]
[1763455244764,0.29,3069.3,3068.3,0.03259133]
[1763455244919,0.1844,3069.9,3069.2,0.1839]
[1763455245230,0.7436,3069.8,3068.2,0.4927]
[1763455245437,0.7436,3069.8,3068.2,0.52529239]
[1763455245618,0.4536,3069.7,3068.2,0.4927]
[1763455245818,0.29,3069.6,3068.3,0.03259133]
[1763455246031,0.29,3069.6,3068.4,0.4927]
[1763455247763,0.638,3069.9,3068.5,0.03258921]
[1763455247971,0.29,3069.5,3068.5,0.03258921]
[1763455248142,0.29,3069.5,3068.6,0.4927]
[1763455248585,0.1844,3069.9,3068.6,0.4927]
[1763455248887,0.1844,3070.8,3069.8,0.1839]
[1763455249038,0.29,3070.7,3069.8,0.1839]
[1763455249244,1.176,3070.6,3069.8,0.1839]